lending/lending_fUSD_20260312
["ID","MTS","AMOUNT","RATE_DAILY","PERIOD"]
[408235489,1773283742922,-1766.33937244,0.00017532,2]
[408235490,1773283742950,-174.0522122,0.00017546,2]
[408235491,1773283743050,-1640.6189601,0.00017546,2]
[408235492,1773283748811,-3316.0,0.00017546,2]
[408235493,1773283748838,-155.17,0.000179,2]
[408235494,1773283748865,-300.0,0.00018288,2]
[408235495,1773283748926,-2457.67,0.00018289,2]
[408235496,1773283754851,-2343.953884,0.00018289,2]
[408235501,1773283832295,-396.762232,0.00018243,2]
[408235502,1773283832304,-1822.59628865,0.00018335,2]
[408235503,1773283832313,-1381.06579002,0.00018381,2]
[408235504,1773283832324,-818.42572312,0.00018381,2]
[408235505,1773283832335,-745.26097808,0.00018381,2]
[408235506,1773283832347,-200.34138072,0.00018381,2]
[408235507,1773283832356,-300.0,0.00018389,2]
[408235508,1773283832365,-142.86196222,0.00018481,2]
[408235509,1773283832379,-629.87095604,0.00018481,2]
[408235510,1773283832390,-301.91708174,0.00018481,2]
[408235511,1773283832400,-200.0,0.00018483,2]
[408235512,1773283832409,-746.9522112,0.00018508,2]
[408235516,1773283832616,-393.653476,0.00018508,2]
[408235517,1773283832627,-859.3943128,0.00018508,2]
[408235518,1773283832636,-1011.06,0.00018538,2]
[408235519,1773283832645,-300.0,0.00018777,2]
[408235520,1773283832654,-300.0,0.00018777,2]
[408235521,1773283832663,-588.18170546,0.00018777,2]
[408235522,1773283832674,-250.0,0.00018777,2]
[408235523,1773283832685,-361.81829454,0.00018777,2]
[408235524,1773283832695,-3145.09387194,0.00018778,2]
[408235525,1773283832704,-2084.05,0.00018856,2]
[408235526,1773283832713,-500.0,0.00018999,2]
[408235527,1773283832722,-1000.0,0.00019178,2]
[408235528,1773283832731,-941.88,0.00019182,2]
[408235529,1773283832740,-166.06,0.000192,3]
[408235530,1773283832749,-173.0,0.00019251,2]
[408235531,1773283832757,-513.0,0.00019315,2]
[408235532,1773283832766,-1000.0,0.00019452,2]
[408235533,1773283832774,-1000.0,0.00019538,2]
[408235534,1773283832784,-28110.5785,0.00019538,2]
[408235535,1773283832793,-3145.09387194,0.00019573,2]
[408235536,1773283832802,-939.60496996,0.00019573,2]
[408235537,1773283832811,-939.6049699,0.00019609,2]
[408235538,1773283832821,-150.66820651,0.00019637,2]
[408235539,1773283832829,-500.0,0.00019637,2]
[408235540,1773283832838,-500.0,0.00019637,2]
[408235541,1773283832847,-500.0,0.00019637,2]
[408235542,1773283832856,-508.34854705,0.00019637,2]
[408235543,1773283832865,-500.0,0.00019637,2]
[408235544,1773283832875,-500.0,0.00019637,2]
[408235545,1773283832884,-500.0,0.00019637,2]
[408235546,1773283832894,-500.0,0.00019637,2]
[408235547,1773283832903,-500.0,0.00019637,2]
[408235548,1773283832912,-500.0,0.00019637,2]
[408235549,1773283832921,-93764.6338415,0.00019638,2]
[408235550,1773283832933,-471.84604647,0.00019638,2]
[408235551,1773283832944,-298.17328975,0.00019638,2]
[408235552,1773283832961,-27404.21792275,0.00019638,2]
[408235554,1773283838457,-784.28,0.00019573,2]
[408235555,1773283838467,-6565.42995999,0.00019638,2]
[408235556,1773283838511,-109963.96753954,0.00019638,2]
[408235557,1773283838520,-939.6049699,0.00019646,2]
[408235558,1773283838529,-637.89643594,0.00019673,2]
[408235559,1773283838538,-500.0,0.00019673,2]
[408235560,1773283838548,-500.0,0.00019673,2]
[408235561,1773283838556,-500.0,0.00019673,2]
[408235562,1773283838565,-939.6049699,0.00019682,2]
[408235563,1773283838574,-2238.42383527,0.000197,2]
[408235564,1773283838583,-939.6049699,0.00019718,2]
[408235565,1773283838592,-173.0,0.00019724,2]
[408235566,1773283838601,-289.66,0.00019726,2]
[408235567,1773283838609,-500.0,0.00019726,2]
[408235568,1773283838618,-150.0,0.00019726,2]
[408235569,1773283838627,-500.0,0.00019726,2]
[408235570,1773283838635,-150.0,0.00019726,2]
[408235571,1773283838644,-150.0,0.00019726,2]
[408235572,1773283838653,-500.0,0.00019726,2]
[408235573,1773283838662,-150.0,0.00019726,2]
[408235574,1773283838671,-500.0,0.00019726,2]
[408235575,1773283838679,-500.0,0.00019726,2]
[408235576,1773283838689,-150.0,0.00019726,2]
[408235577,1773283838698,-150.0,0.00019726,2]
[408235578,1773283838707,-150.0,0.00019726,2]
[408235579,1773283838715,-158.29035899,0.00019726,2]
[408235580,1773283838724,-150.0,0.00019726,2]
[408235581,1773283838734,-150.0,0.00019726,2]
[408235582,1773283838743,-500.0,0.00019726,2]
[408235583,1773283838753,-150.0,0.00019726,2]
[408235585,1773283838762,-153.19999462,0.00019726,2]
[408235587,1773283838770,-150.0,0.00019726,2]
[408235589,1773283838779,-208.86314641,0.00019726,2]
[408235591,1773283838788,-500.0,0.00019726,2]
[408235593,1773283838798,-150.0,0.00019726,2]
[408235595,1773283838807,-500.0,0.00019726,2]
[408235597,1773283838816,-150.0,0.00019726,2]
[408235599,1773283838825,-1999.0,0.00019726,2]
[408235601,1773283838835,-168.0,0.00019736,2]
[408235603,1773283838844,-939.6049699,0.00019755,2]
[408235604,1773283838853,-500.0,0.00019773,2]
[408235606,1773283838862,-583.49211443,0.00019781,2]
[408235608,1773283838872,-150.0,0.00019781,2]
[408235609,1773283838881,-500.0,0.00019781,2]
[408235610,1773283838890,-200.0,0.00019781,2]
[408235611,1773283838899,-251.99957865,0.00019781,2]
[408235612,1773283838908,-500.0,0.00019781,2]
[408235613,1773283838918,-150.0,0.00019781,2]
[408235614,1773283838926,-500.0,0.00019781,2]
[408235615,1773283838937,-500.0,0.00019781,2]
[408235616,1773283838950,-150.0,0.00019781,2]
[408235617,1773283838959,-150.55280334,0.00019781,2]
[408235618,1773283838968,-150.0,0.00019781,2]
[408235619,1773283838978,-150.0,0.00019781,2]
[408235620,1773283838987,-500.0,0.00019781,2]
[408235621,1773283838996,-150.0,0.00019781,2]
[408235622,1773283839005,-150.0,0.00019781,2]
[408235623,1773283839014,-500.0,0.00019781,2]
[408235624,1773283839023,-500.0,0.00019781,2]
[408235625,1773283839033,-150.0,0.00019781,2]
[408235626,1773283839042,-150.0,0.00019781,2]
[408235627,1773283839051,-939.6049699,0.00019791,2]
[408235628,1773283839060,-2084.05,0.00019799,2]
[408235629,1773283839070,-165.0,0.000198,3]
[408235630,1773283839079,-1802.18336,0.000198,2]
[408235631,1773283839088,-1802.18336,0.000198,2]
[408235632,1773283839097,-939.6049699,0.00019827,2]
[408235633,1773283839106,-150.0,0.00019836,2]
[408235634,1773283839116,-500.0,0.00019836,2]
[408235635,1773283839125,-500.0,0.00019836,2]
[408235636,1773283839134,-150.0,0.00019836,2]
[408235637,1773283839143,-500.0,0.00019836,2]
[408235638,1773283839152,-500.0,0.00019836,2]
[408235639,1773283839161,-316.59135626,0.00019836,2]
[408235640,1773283839170,-150.0,0.00019836,2]
[408235641,1773283839179,-500.0,0.00019836,2]
[408235642,1773283839189,-500.0,0.00019836,2]
[408235643,1773283839199,-200.0,0.00019836,2]
[408235644,1773283839208,-150.0,0.00019836,2]
[408235645,1773283839217,-168.0,0.00019853,2]
[408235646,1773283839227,-939.6049699,0.00019864,2]
[408235647,1773283839236,-169.544,0.00019864,2]
[408235648,1773283839246,-2709.404,0.00019864,2]
[408235649,1773283839255,-500.0,0.00019873,2]
[408235650,1773283839264,-500.0,0.00019873,2]
[408235651,1773283839273,-150.0,0.00019873,2]
[408235652,1773283839283,-173.0,0.00019873,2]
[408235653,1773283839292,-3870.7828871,0.00019874,2]
[408235654,1773283839301,-4194.2891864,0.00019874,2]
[408235655,1773283839310,-150.0,0.0001989,2]
[408235656,1773283839319,-294.0,0.0001989,2]
[408235657,1773283839328,-150.0,0.0001989,2]
[408235658,1773283839337,-500.0,0.0001989,2]
[408235659,1773283839346,-500.0,0.0001989,2]
[408235660,1773283839355,-150.0,0.0001989,2]
[408235661,1773283839364,-500.0,0.0001989,2]
[408235662,1773283839373,-152.4609476,0.0001989,2]
[408235663,1773283839382,-500.0,0.00019899,2]
[408235664,1773283839391,-500.0,0.00019899,2]
[408235665,1773283839400,-456.88216029,0.00019899,2]
[408235666,1773283839409,-10000.0,0.000199,2]
[408235667,1773283839418,-550.33413122,0.000199,2]
[408235668,1773283839427,-4802.8498,0.000199,2]
[408235669,1773283839437,-388.99447792,0.000199,2]
[408235670,1773283839446,-239.20463266,0.000199,2]
[408235671,1773283839458,-11205.4084712,0.000199,2]
[408235672,1773283839467,-259.85658068,0.000199,2]
[408235673,1773283839478,-9946.41303618,0.000199,2]
[408235674,1773283839487,-939.6049699,0.000199,2]
[408235675,1773283839497,-191.15728758,0.000199,2]
[408235676,1773283839506,-3975.63866947,0.000199,2]
[408235677,1773283839515,-1271.44,0.00019902,2]
[408235678,1773283839524,-150.0,0.00019945,2]
[408235679,1773283839533,-200.0,0.00019945,2]
[408235680,1773283839543,-500.0,0.00019945,2]
[408235681,1773283839552,-500.0,0.00019945,2]
[408235682,1773283839561,-150.0,0.00019945,2]
[408235683,1773283839570,-500.0,0.00019945,2]
[408235684,1773283839579,-223.15,0.00019951,2]
[408235685,1773283839588,-371.53423539,0.00019964,2]
[408235686,1773283839600,-500.0,0.00019964,2]
[408235687,1773283839615,-507.45956471,0.00019964,2]
[408235688,1773283839627,-500.0,0.00019964,2]
[408235689,1773283839636,-500.0,0.00019964,2]
[408235690,1773283839645,-509.61725912,0.00019964,2]
[408235691,1773283839658,-516.68643807,0.00019964,2]
[408235692,1773283839666,-500.0,0.00019964,2]
[408235693,1773283839675,-500.0,0.00019964,2]
[408235694,1773283839684,-163.0,0.00019973,2]
[408235695,1773283839693,-200.04606702,0.0001999,2]
[408235696,1773283839702,-1050.3519106,0.00019994,2]
[408235697,1773283839711,-1571.1375452,0.00019994,2]
[408235698,1773283839724,-151.0,0.00019997,2]
[408235699,1773283839733,-506.16099555,0.00019999,2]
[408235700,1773283839742,-500.0,0.00019999,2]
[408235701,1773283839751,-500.0,0.00019999,2]
[408235702,1773283839760,-514.94724986,0.00019999,2]
[408235703,1773283839769,-514.33858661,0.00019999,2]
[408235704,1773283839778,-500.0,0.00019999,2]
[408235705,1773283839787,-500.0,0.00019999,2]
[408235706,1773283839796,-500.0,0.00019999,2]
[408235707,1773283839806,-500.0,0.00019999,2]
[408235708,1773283839815,-500.0,0.00019999,2]
[408235709,1773283839825,-500.0,0.00019999,2]
[408235710,1773283839834,-500.0,0.00019999,2]
[408235711,1773283839844,-521.6043228,0.00019999,2]
[408235712,1773283839853,-500.0,0.00019999,2]
[408235713,1773283839862,-500.0,0.00019999,2]
[408235714,1773283839872,-500.0,0.00019999,2]
[408235715,1773283839881,-500.0,0.00019999,2]
[408235716,1773283839890,-500.0,0.00019999,2]
[408235717,1773283839899,-601.03543799,0.00019999,2]
[408235718,1773283839908,-368.80956201,0.00019999,2]
[408235719,1773283839918,-500.0,0.00019999,2]
[408235720,1773283839927,-500.0,0.00019999,2]
[408235721,1773283839936,-254.86705709,0.00019999,2]
[408235722,1773283839945,-2044.0,0.0002,2]
[408235723,1773283839956,-1638.0,0.0002,2]
[408235724,1773283839967,-250.0,0.0002,2]
[408235725,1773283839977,-500.0,0.0002,2]
[408235726,1773283839986,-507.47456818,0.0002,2]
[408235727,1773283839996,-250.0,0.0002,2]
[408235728,1773283840006,-500.0,0.0002,2]
[408235729,1773283840018,-296800.35461615,0.0002,2]
[408235730,1773283840031,-616.07214267,0.0002,2]
[408235732,1773283840494,-5349.64316294,0.0002,2]
[408235733,1773283840653,-276.871998,0.0002,2]
[408235734,1773283840706,-505.0,0.0002,2]
[408235735,1773283840718,-2075.5,0.0002,2]
[408235736,1773283840729,-417.717664,0.0002,2]
[408235737,1773283840760,-11762.60660482,0.0002,2]
[408235738,1773283840917,-90397.5479836,0.0002,2]
[408235739,1773283840929,-4353.0468707,0.0002,2]
[408235746,1773283845208,-5132.95067307,0.0002,2]
[408235747,1773283845261,-43370.43764458,0.0002,2]
[408235748,1773283845420,-657.94808249,0.0002,2]
[408235749,1773283845477,-869.50313712,0.0002,2]
[408235750,1773283845529,-38904.7607804,0.0002,2]
[408235751,1773283845540,-10165.5000001,0.0002,2]
[408235752,1773283845551,-726.65367492,0.0002,2]
[408235777,1773283846525,-957.57875558,0.0002,2]
[408235778,1773283846590,-32.49734759,0.0002,2]
[408235779,1773283846631,-12940.55648981,0.0002,2]
[408235780,1773283846642,-1167.76496587,0.0002,2]
[408235781,1773283846685,-496.41245146,0.0002,2]
[408235782,1773283846698,-1036.94153083,0.0002,2]
[408235783,1773283846710,-16512.63184029,0.0002,2]
[408235784,1773283846721,-7595.19730418,0.0002,2]
[408235785,1773283846791,-5100.93599827,0.0002,2]
[408235809,1773284393767,5000.01,0.0001199,2]
[408235810,1773284393791,14.89558591,0.0001199,2]
[408235817,1773284549197,500.0,9.4e-05,2]
[408235818,1773284549809,500.0,9.4e-05,2]
[408235819,1773284550259,994.10856489,9.4e-05,2]
[408235825,1773284553927,8899.60608117,9.5e-05,3]
[408235826,1773284556670,500.0,9.4e-05,2]
[408235831,1773284845243,500.0,9.4e-05,2]
[408235838,1773284954153,-194.42173032,0.000149,2]
[408235839,1773284954175,-1200.0,0.00014999,2]
[408235840,1773284954196,-300.0,0.00014999,2]
[408235841,1773284954221,-300.0,0.00014999,2]
[408235842,1773284954241,-300.0,0.00014999,2]
[408235843,1773284954262,-600.0,0.00015,2]
[408235844,1773284954284,-2625.71717368,0.00015,7]
[408235845,1773285031374,-300.0,0.00014999,2]
[408235846,1773285031384,-1200.0,0.00014999,2]
[408235847,1773285031393,-3600.19094071,0.00015,7]
[408235851,1773285031428,-1514.16905929,0.00015,7]
[408235854,1773285031439,-708.8771142,0.00015,7]
[408235855,1773285031484,-784.80151804,0.00015,7]
[408235856,1773285031496,-6594.42061632,0.00015,7]
[408235857,1773285031505,-500.0,0.00015,30]
[408235858,1773285031515,-500.0,0.00015,30]
[408235859,1773285031524,-507.17248683,0.00015,30]
[408235860,1773285031535,-500.0,0.00015,30]
[408235861,1773285031545,-213.36,0.000152,2]
[408235862,1773285031554,-172.02,0.00015236,2]
[408235863,1773285031564,-204.77558147,0.0001639,2]
[408235864,1773285031574,-150.19959275,0.0001639,2]
[408235865,1773285031583,-250.0,0.0001639,2]
[408235866,1773285031593,-4567.4689736,0.0001639,2]
[408235867,1773285031604,-432.5310264,0.0001639,2]
[408235868,1773285031614,-302.0,0.00016416,2]
[408235869,1773285031623,-277.4689736,0.00016416,2]
[408235870,1773285031634,-142.5310264,0.00016416,2]
[408235871,1773285031643,-200.55024192,0.00016499,2]
[408235873,1773285031652,-373.42990941,0.00016499,2]
[408235874,1773285031665,-2126.57009059,0.00016499,2]
[408235876,1773285031674,-1002.37884532,0.00016499,2]
[408235877,1773285031688,-1680.0,0.00016499,2]
[408235878,1773285031697,-172.99984726,0.00017,7]
[408235880,1773285031706,-587.0,0.00017966,2]
[408235881,1773285031715,-166.66,0.00018017,2]
[408235882,1773285031725,-2351.0,0.00018149,2]
[408235884,1773285031735,-160.42,0.00018267,2]
[408235885,1773285031745,-200.0,0.00018278,2]
[408235886,1773285031754,-166.66,0.00018396,2]
[408235887,1773285031763,-150.0,0.0001845,2]
[408235888,1773285031773,-1852.42,0.00018554,2]
[408235889,1773285031783,-343110.41875795,0.00018573,2]
[408235890,1773285031794,-60191.42831281,0.00018573,2]
[408235891,1773285031809,-378.35139607,0.00018573,2]
[408235892,1773285031820,-2533.18953121,0.00018573,2]
[408235893,1773285031831,-2518.78506904,0.00018573,2]
[408235894,1773285037511,-434.77980305,0.00018572,2]
[408235895,1773285037523,-65.22019695,0.00018572,2]
[408235896,1773285037533,-500.0,0.00018572,2]
[408235897,1773285037543,-456.88216029,0.00018572,2]
[408235898,1773285037552,-251.52502884,0.00018573,2]
[408235899,1773285037563,-32333.47276782,0.00018573,2]
[408235900,1773285037574,-2294.02273626,0.00018573,2]
[408235901,1773285037583,-1478.0261,0.00018656,2]
[408235902,1773285037592,-1438.5109,0.00018656,2]
[408235903,1773285037602,-3145.09387194,0.00018673,2]
[408235904,1773285037611,-194.42173031,0.00018673,2]
[408235905,1773285037620,-824.87132356,0.00018673,2]
[408235906,1773285037630,-151.0,0.00018745,2]
[408235907,1773285037639,-151.0,0.00018745,2]
[408235908,1773285037650,-154.4363437,0.00018745,2]
[408235909,1773285037659,-405.0,0.00018745,2]
[408235910,1773285037668,-2752.68614325,0.00018746,2]
[408235911,1773285037678,-506.42760695,0.00018773,2]
[408235912,1773285037687,-500.0,0.00018773,2]
[408235913,1773285037696,-500.0,0.00018773,2]
[408235914,1773285037705,-637.89643594,0.00018773,2]
[408235915,1773285037715,-500.51227958,0.00018773,2]
[408235916,1773285037725,-500.0,0.00018773,2]
[408235917,1773285037734,-166.66,0.00018775,2]
[408235918,1773285037744,-500.0,0.00018999,2]
[408235919,1773285037754,-500.0,0.00018999,2]
[408235920,1773285037763,-500.0,0.00018999,2]
[408235921,1773285037771,-500.0,0.00018999,2]
[408235922,1773285037781,-500.0,0.00018999,2]
[408235924,1773285037790,-500.0,0.00018999,2]
[408235926,1773285037800,-500.0,0.00018999,2]
[408235928,1773285037808,-500.0,0.00018999,2]
[408235930,1773285037818,-500.0,0.00018999,2]
[408235932,1773285037827,-500.0,0.00018999,2]
[408235934,1773285037836,-500.0,0.00018999,2]
[408235936,1773285037845,-500.0,0.00018999,2]
[408235938,1773285037854,-500.0,0.00018999,2]
[408235940,1773285037863,-500.0,0.00018999,2]
[408235942,1773285037872,-500.0,0.00018999,2]
[408235944,1773285037881,-500.0,0.00018999,2]
[408235945,1773285037890,-500.0,0.00018999,2]
[408235947,1773285037899,-500.0,0.00018999,2]
[408235949,1773285037908,-500.0,0.00018999,2]
[408235951,1773285037918,-500.0,0.00018999,2]
[408235954,1773285037927,-500.0,0.00018999,2]
[408235955,1773285037937,-500.0,0.00018999,2]
[408235957,1773285037946,-500.0,0.00018999,2]
[408235959,1773285037955,-500.0,0.00018999,2]
[408235961,1773285037964,-500.0,0.00018999,2]
[408235963,1773285037973,-166.66,0.00019155,2]
[408235966,1773285037991,-1000.0,0.00019178,2]
[408235969,1773285038001,-504.6872031,0.00019321,2]
[408235970,1773285038010,-500.0,0.00019321,2]
[408235973,1773285038020,-160.42,0.00019409,2]
[408235974,1773285038030,-1000.0,0.00019452,2]
[408235975,1773285038039,-250.0,0.00019461,2]
[408235976,1773285038048,-168.0,0.00019485,2]
[408235977,1773285038057,-2000.0,0.000195,2]
[408235978,1773285038066,-166.66,0.00019534,2]
[408235979,1773285038075,-3730.5215,0.00019538,2]
[408235980,1773285038085,-2527.41396167,0.00019626,2]
[408235981,1773285038094,-509.61725912,0.00019637,2]
[408235982,1773285038104,-516.68643807,0.00019637,2]
[408235983,1773285038113,-500.0,0.00019637,2]
[408235984,1773285038122,-500.0,0.00019637,2]
[408235985,1773285038132,-2527.41396164,0.00019656,2]
[408235986,1773285038141,-823.0,0.00019663,2]
[408235987,1773285038150,-2527.41396164,0.00019687,2]
[408235988,1773285038159,-2527.41396164,0.00019717,2]
[408235989,1773285038168,-150.0,0.00019726,2]
[408235990,1773285038177,-500.0,0.00019726,2]
[408235991,1773285038186,-150.0,0.00019726,2]
[408235992,1773285038196,-150.0,0.00019726,2]
[408235993,1773285038205,-150.0,0.00019726,2]
[408235994,1773285038215,-153.19999462,0.00019726,2]
[408235995,1773285038225,-150.0,0.00019726,2]
[408235996,1773285038236,-208.86314641,0.00019726,2]
[408235997,1773285038245,-500.0,0.00019726,2]
[408235998,1773285038255,-150.0,0.00019726,2]
[408235999,1773285038264,-150.0,0.00019726,2]
[408236000,1773285038274,-500.0,0.00019726,2]
[408236001,1773285038283,-500.0,0.00019726,2]
[408236002,1773285038293,-150.0,0.00019726,2]
[408236003,1773285038306,-500.0,0.00019726,2]
[408236004,1773285038315,-500.0,0.00019726,2]
[408236005,1773285038325,-150.0,0.00019726,2]
[408236007,1773285038334,-150.0,0.00019726,2]
[408236008,1773285038342,-150.0,0.00019726,2]
[408236010,1773285038351,-158.29035899,0.00019726,2]
[408236012,1773285038360,-500.0,0.00019726,2]
[408236014,1773285038371,-150.0,0.00019726,2]
[408236016,1773285038380,-150.0,0.00019726,2]
[408236018,1773285038388,-500.0,0.00019726,2]
[408236020,1773285038398,-500.0,0.00019726,2]
[408236021,1773285038408,-1000.0,0.00019726,2]
[408236023,1773285038417,-1803.0,0.00019732,2]
[408236025,1773285038426,-2527.41396164,0.00019748,2]
[408236027,1773285038436,-500.93071365,0.00019773,2]
[408236029,1773285038445,-500.0,0.00019773,2]
[408236032,1773285038454,-501.23231111,0.00019773,2]
[408236034,1773285038463,-501.00533908,0.00019773,2]
[408236035,1773285038472,-500.0,0.00019773,2]
[408236038,1773285038482,-500.7237999,0.00019773,2]
[408236040,1773285038491,-559.37645425,0.00019773,2]
[408236041,1773285038501,-500.40770532,0.00019773,2]
[408236043,1773285038510,-501.72225652,0.00019773,2]
[408236045,1773285038519,-501.8050493,0.00019773,2]
[408236047,1773285038528,-505.57266482,0.00019773,2]
[408236049,1773285038538,-502.30166976,0.00019773,2]
[408236051,1773285038548,-158.95422512,0.00019773,2]
[408236054,1773285038559,-500.26311273,0.00019773,2]
[408236056,1773285038569,-502.04959379,0.00019773,2]
[408236058,1773285038578,-500.92119116,0.00019773,2]
[408236060,1773285038587,-501.33985564,0.00019773,2]
[408236062,1773285038597,-500.31279021,0.00019773,2]
[408236064,1773285038606,-500.93111298,0.00019773,2]
[408236066,1773285038615,-605.9979616,0.00019773,2]
[408236068,1773285038625,-2527.41396164,0.00019778,2]
[408236070,1773285038633,-150.0,0.00019781,2]
[408236072,1773285038642,-583.49211443,0.00019781,2]
[408236074,1773285038651,-150.0,0.00019781,2]
[408236076,1773285038661,-150.0,0.00019781,2]
[408236078,1773285038670,-150.0,0.00019781,2]
[408236080,1773285038679,-150.0,0.00019781,2]
[408236082,1773285038689,-500.0,0.00019781,2]
[408236084,1773285038698,-200.0,0.00019781,2]
[408236086,1773285038707,-500.0,0.00019781,2]
[408236088,1773285038717,-500.0,0.00019781,2]
[408236090,1773285038726,-150.0,0.00019781,2]
[408236092,1773285038735,-500.0,0.00019781,2]
[408236094,1773285038744,-500.0,0.00019781,2]
[408236096,1773285038752,-150.0,0.00019781,2]
[408236098,1773285038762,-150.55280334,0.00019781,2]
[408236100,1773285038771,-150.0,0.00019781,2]
[408236102,1773285038780,-500.0,0.00019781,2]
[408236104,1773285038789,-150.0,0.00019781,2]
[408236105,1773285038799,-500.0,0.00019781,2]
[408236108,1773285038808,-500.0,0.00019781,2]
[408236110,1773285038817,-1201.45557,0.000198,2]
[408236111,1773285038826,-1201.45557,0.000198,2]
[408236114,1773285038835,-2527.41396164,0.00019809,2]
[408236115,1773285038845,-150.0,0.00019836,2]
[408236118,1773285038854,-150.0,0.00019836,2]
[408236120,1773285038863,-500.0,0.00019836,2]
[408236122,1773285038873,-500.0,0.00019836,2]
[408236124,1773285038882,-300.0,0.00019836,2]
[408236126,1773285038891,-251.99957865,0.00019836,2]
[408236127,1773285038900,-500.0,0.00019836,2]
[408236130,1773285038909,-500.0,0.00019836,2]
[408236132,1773285038918,-150.0,0.00019836,2]
[408236134,1773285038927,-150.0,0.00019836,2]
[408236135,1773285038937,-316.59135626,0.00019836,2]
[408236137,1773285038946,-200.0,0.00019836,2]
[408236139,1773285038955,-500.0,0.00019836,2]
[408236141,1773285038965,-500.0,0.00019836,2]
[408236143,1773285038974,-200.0,0.00019836,2]
[408236145,1773285038983,-168.0,0.00019838,2]
[408236147,1773285038992,-2527.41396164,0.00019839,2]
[408236149,1773285039001,-2709.404,0.00019864,2]
[408236152,1773285039010,-169.544,0.00019864,2]
[408236153,1773285039020,-2527.41396164,0.0001987,2]
[408236155,1773285039029,-23021.23385409,0.0001987,2]
[408236157,1773285039038,-500.96819859,0.00019873,2]
[408236159,1773285039047,-501.18208299,0.00019873,2]
[408236161,1773285039056,-501.00583529,0.00019873,2]
[408236163,1773285039066,-194.42908711,0.00019873,2]
[408236165,1773285039075,-500.57549649,0.00019873,2]
[408236167,1773285039084,-500.0,0.00019873,2]
[408236169,1773285039094,-150.0,0.00019873,2]
[408236171,1773285039103,-500.94993668,0.00019873,2]
[408236173,1773285039112,-500.96059113,0.00019873,2]
[408236175,1773285039121,-500.64651238,0.00019873,2]
[408236177,1773285039130,-501.77207058,0.00019873,2]
[408236179,1773285039139,-164.75042559,0.00019873,2]
[408236181,1773285039148,-500.59924271,0.00019873,2]
[408236183,1773285039157,-500.0,0.00019873,2]
[408236185,1773285039166,-501.85056742,0.00019873,2]
[408236187,1773285039175,-500.12159821,0.00019873,2]
[408236189,1773285039185,-500.0,0.00019873,2]
[408236191,1773285039194,-500.0,0.00019873,2]
[408236193,1773285039202,-500.98864004,0.00019873,2]
[408236195,1773285039212,-161.57045778,0.00019873,2]
[408236217,1773285039417,-336.62897226,0.00019873,2]
[408236219,1773285039426,-500.84992716,0.00019873,2]
[408236221,1773285039435,-150.0,0.0001989,2]
[408236223,1773285039445,-150.0,0.0001989,2]
[408236225,1773285039454,-500.0,0.0001989,2]
[408236227,1773285039463,-500.0,0.0001989,2]
[408236229,1773285039473,-500.0,0.0001989,2]
[408236231,1773285039482,-152.4609476,0.0001989,2]
[408236233,1773285039492,-210.28483166,0.0001989,2]
[408236235,1773285039502,-500.0,0.0001989,2]
[408236237,1773285039511,-775.1,0.00019898,2]
[408236239,1773285039520,-500.0,0.00019899,2]
[408236241,1773285039529,-514.94724986,0.00019899,2]
[408236243,1773285039539,-500.0,0.00019899,2]
[408236245,1773285039548,-514.33858661,0.00019899,2]
[408236247,1773285039557,-500.0,0.00019899,2]
[408236249,1773285039566,-3726.29171923,0.00019899,2]